[Event "Late-Titled-Tuesday-Blitz-September-19-2023"]
[Site "Chess.com"]
[Date "2023.09.19"]
[Round "1"]
[White "MergenKakabaev"]
[Black "Laico"]
[Result "1-0"]
[WhiteElo "2668"]
[BlackElo "2378"]
[TimeControl "180+1"]
[EndTime "14:06:56 PDT"]
[Termination "MergenKakabaev won by resignation"]

1. e4 {[%clk 0:03:00.9]} 1... e6 {[%clk 0:02:59.6]} 2. d4 {[%clk 0:03:00.9]}
2... d5 {[%clk 0:03:00.2]} 3. e5 {[%clk 0:03:01.5]} 3... c5 {[%clk 0:03:00.1]}
4. c3 {[%clk 0:03:02.2]} 4... Nc6 {[%clk 0:03:00.8]} 5. Nf3 {[%clk 0:03:02.4]}
5... Bd7 {[%clk 0:03:01.3]} 6. a3 {[%clk 0:03:02.3]} 6... Rc8 {[%clk 0:02:58.7]}
7. Be3 {[%clk 0:02:58.7]} 7... cxd4 {[%clk 0:02:51.1]} 8. cxd4 {[%clk
0:02:58.5]} 8... Nge7 {[%clk 0:02:51.8]} 9. Bd3 {[%clk 0:02:57.8]} 9... Nf5
{[%clk 0:02:48.4]} 10. Bxf5 {[%clk 0:02:57.8]} 10... exf5 {[%clk 0:02:49.3]} 11.
Nc3 {[%clk 0:02:57.4]} 11... Be6 {[%clk 0:02:49.7]} 12. O-O {[%clk 0:02:57.9]}
12... Be7 {[%clk 0:02:50.2]} 13. g3 {[%clk 0:02:54.8]} 13... O-O {[%clk
0:02:49.4]} 14. h4 {[%clk 0:02:54.6]} 14... h6 {[%clk 0:02:46]} 15. Rc1 {[%clk
0:02:47.1]} 15... Na5 {[%clk 0:02:44.2]} 16. Nd2 {[%clk 0:02:36.7]} 16... Qd7
{[%clk 0:02:08.7]} 17. Qa4 {[%clk 0:02:30.3]} 17... Qxa4 {[%clk 0:01:57.5]} 18.
Nxa4 {[%clk 0:02:31.2]} 18... b6 {[%clk 0:01:57.9]} 19. b4 {[%clk 0:02:01.5]}
19... Nc6 {[%clk 0:01:28.8]} 20. Nc3 {[%clk 0:01:45.1]} 20... f4 {[%clk
0:01:24.3]} 21. gxf4 {[%clk 0:01:43.8]} 21... Bxh4 {[%clk 0:01:24.4]} 22. f5
{[%clk 0:01:43.9]} 22... Bxf5 {[%clk 0:01:13.8]} 23. Nxd5 {[%clk 0:01:43.8]}
23... Rfd8 {[%clk 0:01:13.9]} 24. Nf3 {[%clk 0:01:37.3]} 24... Bxf2+ {[%clk
0:01:01.1]} 25. Kxf2 {[%clk 0:01:13.8]} 25... Rxd5 {[%clk 0:01:02]} 26. Rc3
{[%clk 0:01:13.9]} 26... Ne7 {[%clk 0:00:48.9]} 27. Rxc8+ {[%clk 0:01:11.7]}
27... Bxc8 {[%clk 0:00:49.8]} 28. Rc1 {[%clk 0:01:10.7]} 28... Rd7 {[%clk
0:00:49.4]} 29. Nd2 {[%clk 0:01:08.1]} 29... Bb7 {[%clk 0:00:45.6]} 30. Rg1
{[%clk 0:01:04.1]} 30... Nf5 {[%clk 0:00:44.4]} 31. Nc4 {[%clk 0:01:03.7]} 31...
Nxd4 {[%clk 0:00:33.6]} 32. Bxh6 {[%clk 0:01:01]} 32... Nf5 {[%clk 0:00:31.1]}
33. Bg5 {[%clk 0:00:55.7]} 33... Rc7 {[%clk 0:00:20.6]} 34. Nd6 {[%clk
0:00:53.7]} 34... Rc2+ {[%clk 0:00:20.7]} 35. Ke1 {[%clk 0:00:50]} 35... Nxd6
{[%clk 0:00:16.2]} 36. exd6 {[%clk 0:00:50.3]} 36... Bc6 {[%clk 0:00:08.3]} 37.
Kd1 {[%clk 0:00:50]} 37... Rc4 {[%clk 0:00:07.2]} 38. Bf6 {[%clk 0:00:49.1]}
38... g6 {[%clk 0:00:07.2]} 39. d7 {[%clk 0:00:44]} 39... Bxd7 {[%clk
0:00:07.2]} 40. Rh1 {[%clk 0:00:44.3]} 40... Rc1+ {[%clk 0:00:06.5]} 41. Kxc1
{[%clk 0:00:44.4]} 1-0

[Event "Late-Titled-Tuesday-Blitz-September-19-2023"]
[Site "Chess.com"]
[Date "2023.09.19"]
[Round "1"]
[White "simplerXiao"]
[Black "GMJustin"]
[Result "1-0"]
[WhiteElo "2558"]
[BlackElo "2253"]
[TimeControl "180+1"]
[EndTime "14:06:57 PDT"]
[Termination "simplerXiao won on time"]

1. e4 {[%clk 0:02:51.5]} 1... c5 {[%clk 0:02:50.9]} 2. Nf3 {[%clk 0:02:50.9]}
2... e6 {[%clk 0:02:50.7]} 3. d4 {[%clk 0:02:49.4]} 3... cxd4 {[%clk 0:02:50.5]}
4. Nxd4 {[%clk 0:02:50.3]} 4... Nc6 {[%clk 0:02:50.2]} 5. Nc3 {[%clk 0:02:49.8]}
5... Qc7 {[%clk 0:02:49.3]} 6. g3 {[%clk 0:02:49.5]} 6... a6 {[%clk 0:02:48]} 7.
Bg2 {[%clk 0:02:50.1]} 7... Nf6 {[%clk 0:02:44.1]} 8. O-O {[%clk 0:02:48.8]}
8... Bc5 {[%clk 0:02:36.1]} 9. Be3 {[%clk 0:02:46.8]} 9... Ne5 {[%clk 0:02:07]}
10. h3 {[%clk 0:02:31.7]} 10... Nc4 {[%clk 0:02:05.4]} 11. Bc1 {[%clk
0:02:30.3]} 11... O-O {[%clk 0:02:00]} 12. b3 {[%clk 0:02:28.4]} 12... Ne5
{[%clk 0:01:47.4]} 13. Bb2 {[%clk 0:02:28.3]} 13... b5 {[%clk 0:01:44.1]} 14. a3
{[%clk 0:02:21]} 14... Bb7 {[%clk 0:01:42.8]} 15. f4 {[%clk 0:02:15.2]} 15...
Nc6 {[%clk 0:01:37.4]} 16. Ne2 {[%clk 0:02:13.6]} 16... e5 {[%clk 0:01:32.4]}
17. fxe5 {[%clk 0:02:11.2]} 17... Nxe5 {[%clk 0:01:30.6]} 18. Kh2 {[%clk
0:01:58.1]} 18... Nxe4 {[%clk 0:01:26.9]} 19. Rf5 {[%clk 0:01:57.8]} 19... Rae8
{[%clk 0:01:15.6]} 20. Nf4 {[%clk 0:01:27.6]} 20... g6 {[%clk 0:01:08.7]} 21.
Rh5 {[%clk 0:01:23.3]} 21... gxh5 {[%clk 0:01:05.4]} 22. Qxh5 {[%clk 0:01:23.1]}
22... Ng6 {[%clk 0:00:58.5]} 23. Nf5 {[%clk 0:01:20.9]} 23... f6 {[%clk
0:00:49.9]} 24. Nxg6 {[%clk 0:01:20.3]} 24... Nxg3 {[%clk 0:00:33.6]} 25. Nxg3
{[%clk 0:01:16.9]} 25... Bf2 {[%clk 0:00:31.4]} 26. Qg4 {[%clk 0:00:53.6]} 26...
Qxg3+ {[%clk 0:00:23.4]} 27. Qxg3 {[%clk 0:00:53.7]} 27... Bxg3+ {[%clk
0:00:23.6]} 28. Kxg3 {[%clk 0:00:54.6]} 28... hxg6 {[%clk 0:00:16.7]} 29. Bxb7
{[%clk 0:00:53.9]} 29... Re2 {[%clk 0:00:16]} 30. Bd5+ {[%clk 0:00:51]} 30...
Kg7 {[%clk 0:00:15]} 31. Rc1 {[%clk 0:00:40.2]} 31... Rc8 {[%clk 0:00:14.5]} 32.
Rf1 {[%clk 0:00:40.2]} 32... Rcxc2 {[%clk 0:00:12.8]} 33. Bxf6+ {[%clk 0:00:40]}
33... Kh6 {[%clk 0:00:12.4]} 34. h4 {[%clk 0:00:36.8]} 34... Re3+ {[%clk
0:00:11.5]} 35. Kf4 {[%clk 0:00:36.1]} 35... Ree2 {[%clk 0:00:05.7]} 36. Bg5+
{[%clk 0:00:36.3]} 36... Kg7 {[%clk 0:00:05.3]} 37. Kg4 {[%clk 0:00:34.8]} 37...
Rf2 {[%clk 0:00:03.1]} 38. Re1 {[%clk 0:00:31.7]} 38... Rce2 {[%clk 0:00:02.2]}
39. Rd1 {[%clk 0:00:31.2]} 1-0

[Event "Late-Titled-Tuesday-Blitz-September-19-2023"]
[Site "Chess.com"]
[Date "2023.09.19"]
[Round "1"]
[White "maksimys18"]
[Black "BrandonJacobson"]
[Result "0-1"]
[WhiteElo "2490"]
[BlackElo "2919"]
[TimeControl "180+1"]
[EndTime "14:07:00 PDT"]
[Termination "BrandonJacobson won by checkmate"]

1. d4 {[%clk 0:02:58.8]} 1... Nf6 {[%clk 0:02:59.7]} 2. Nf3 {[%clk 0:02:59.2]}
2... g6 {[%clk 0:02:59.7]} 3. c4 {[%clk 0:02:59.3]} 3... Bg7 {[%clk 0:03:00.2]}
4. Nc3 {[%clk 0:02:59.3]} 4... d6 {[%clk 0:03:00.8]} 5. Bg5 {[%clk 0:02:59.3]}
5... c5 {[%clk 0:02:58.2]} 6. d5 {[%clk 0:02:58.8]} 6... h6 {[%clk 0:02:58.4]}
7. Bh4 {[%clk 0:02:58.8]} 7... g5 {[%clk 0:02:59]} 8. Bg3 {[%clk 0:02:58.9]}
8... Nh5 {[%clk 0:02:59.6]} 9. e3 {[%clk 0:02:58.5]} 9... Nxg3 {[%clk
0:02:59.8]} 10. hxg3 {[%clk 0:02:58.4]} 10... Bxc3+ {[%clk 0:03:00.5]} 11. bxc3
{[%clk 0:02:58.2]} 11... Kd7 {[%clk 0:03:01.4]} 12. Bd3 {[%clk 0:02:28.7]} 12...
Kc7 {[%clk 0:03:01.4]} 13. Ke2 {[%clk 0:02:24.1]} 13... f5 {[%clk 0:02:52.3]}
14. Qc2 {[%clk 0:02:23.6]} 14... Qf8 {[%clk 0:02:51.8]} 15. a4 {[%clk
0:02:17.5]} 15... a5 {[%clk 0:02:50.6]} 16. Rhb1 {[%clk 0:02:16.9]} 16... f4
{[%clk 0:02:44.4]} 17. gxf4 {[%clk 0:02:13.3]} 17... gxf4 {[%clk 0:02:45.3]} 18.
e4 {[%clk 0:02:08.1]} 18... Bg4 {[%clk 0:02:43.9]} 19. Qb3 {[%clk 0:02:04.7]}
19... Qc8 {[%clk 0:02:20.8]} 20. Qb6+ {[%clk 0:01:58.5]} 20... Kd7 {[%clk
0:02:21.1]} 21. Qxb7+ {[%clk 0:01:58.2]} 21... Qxb7 {[%clk 0:02:20.5]} 22. Rxb7+
{[%clk 0:01:59.1]} 22... Kd8 {[%clk 0:02:21.1]} 23. Rab1 {[%clk 0:01:49.4]}
23... Nd7 {[%clk 0:02:21.4]} 24. Kd2 {[%clk 0:01:49]} 24... Bxf3 {[%clk
0:02:19.9]} 25. gxf3 {[%clk 0:01:49.1]} 25... h5 {[%clk 0:02:11.9]} 26. Bf1
{[%clk 0:01:48.5]} 26... Ke8 {[%clk 0:01:59.5]} 27. Bh3 {[%clk 0:01:45.4]} 27...
Ne5 {[%clk 0:01:59.7]} 28. Be6 {[%clk 0:01:38.7]} 28... Kf8 {[%clk 0:01:58.6]}
29. Rc7 {[%clk 0:01:04.6]} 29... h4 {[%clk 0:01:43]} 30. Rbb7 {[%clk 0:01:02.1]}
30... Re8 {[%clk 0:01:43.2]} 31. Ke2 {[%clk 0:00:54.5]} 31... h3 {[%clk
0:01:42.6]} 32. Rb1 {[%clk 0:00:54.3]} 32... h2 {[%clk 0:01:40.3]} 33. Rh1
{[%clk 0:00:47]} 33... Rb8 {[%clk 0:01:34.4]} 34. Kf1 {[%clk 0:00:46.8]} 34...
Rb1+ {[%clk 0:01:33.9]} 35. Kg2 {[%clk 0:00:46.8]} 35... Rxh1 {[%clk 0:01:34.8]}
36. Kxh1 {[%clk 0:00:46.8]} 36... Kg7 {[%clk 0:01:25.7]} 37. Rxe7+ {[%clk
0:00:45.6]} 37... Kf6 {[%clk 0:01:25.7]} 38. Ra7 {[%clk 0:00:44.5]} 38... Nd3
{[%clk 0:01:25.8]} 39. Rf7+ {[%clk 0:00:43]} 39... Kg6 {[%clk 0:01:25.6]} 40.
Rh7 {[%clk 0:00:24.9]} 40... Kxh7 {[%clk 0:01:21.8]} 41. Kxh2 {[%clk 0:00:24.3]}
41... Kg7+ {[%clk 0:01:16.2]} 42. Kg2 {[%clk 0:00:24.3]} 42... Kf6 {[%clk
0:01:12.6]} 43. Kf1 {[%clk 0:00:23.9]} 43... Rh2 {[%clk 0:01:10.8]} 44. Bd7
{[%clk 0:00:22.6]} 44... Rxf2+ {[%clk 0:01:10.6]} 45. Kg1 {[%clk 0:00:23.1]}
45... Rxf3 {[%clk 0:01:11]} 46. Kg2 {[%clk 0:00:23.1]} 46... Rg3+ {[%clk
0:01:11.5]} 47. Kf1 {[%clk 0:00:22.7]} 47... f3 {[%clk 0:01:11.7]} 48. e5+
{[%clk 0:00:20.4]} 48... Kxe5 {[%clk 0:01:11.9]} 49. Bg4 {[%clk 0:00:19.7]}
49... f2 {[%clk 0:01:11.6]} 50. Ke2 {[%clk 0:00:17.5]} 50... Rg1 {[%clk
0:01:10.2]} 51. Bh3 {[%clk 0:00:15.7]} 51... Ke4 {[%clk 0:01:10.5]} 52. Bf5+
{[%clk 0:00:04.5]} 52... Kxf5 {[%clk 0:01:10.2]} 53. Ke3 {[%clk 0:00:05.4]}
53... f1=Q {[%clk 0:01:08.8]} 54. Kd2 {[%clk 0:00:06.3]} 54... Rg2+ {[%clk
0:01:08.2]} 55. Ke3 {[%clk 0:00:07.2]} 55... Qe2# {[%clk 0:01:08.8]} 0-1

[Event "Late-Titled-Tuesday-Blitz-September-19-2023"]
[Site "Chess.com"]
[Date "2023.09.19"]
[Round "1"]
[White "19912131712118"]
[Black "IlanSchnaider"]
[Result "0-1"]
[WhiteElo "2445"]
[BlackElo "2761"]
[TimeControl "180+1"]
[EndTime "14:07:02 PDT"]
[Termination "IlanSchnaider won by resignation"]

1. e4 {[%clk 0:02:58.2]} 1... c5 {[%clk 0:02:59.2]} 2. Nf3 {[%clk 0:02:58.2]}
2... d6 {[%clk 0:02:59.2]} 3. d4 {[%clk 0:02:59]} 3... cxd4 {[%clk 0:02:59.8]}
4. Nxd4 {[%clk 0:02:59.5]} 4... Nf6 {[%clk 0:02:59.2]} 5. Nc3 {[%clk 0:03:00]}
5... a6 {[%clk 0:02:59]} 6. Bg5 {[%clk 0:03:00.1]} 6... e6 {[%clk 0:02:57]} 7.
f4 {[%clk 0:02:59.8]} 7... Be7 {[%clk 0:02:56.3]} 8. Qf3 {[%clk 0:02:57.7]} 8...
Qc7 {[%clk 0:02:53.2]} 9. O-O-O {[%clk 0:02:55.5]} 9... Nbd7 {[%clk 0:02:53.8]}
10. Kb1 {[%clk 0:02:51.3]} 10... b5 {[%clk 0:02:50.8]} 11. a3 {[%clk 0:02:45.1]}
11... Bb7 {[%clk 0:02:50.8]} 12. Bd3 {[%clk 0:02:45.7]} 12... Rc8 {[%clk
0:02:34.1]} 13. Rhe1 {[%clk 0:02:42.2]} 13... h6 {[%clk 0:02:32.1]} 14. Bh4
{[%clk 0:02:41.8]} 14... Nc5 {[%clk 0:02:27.2]} 15. Bf2 {[%clk 0:02:36.4]} 15...
Nfd7 {[%clk 0:02:16.3]} 16. Nd5 {[%clk 0:01:47.5]} 16... exd5 {[%clk 0:02:01.7]}
17. exd5 {[%clk 0:01:48.4]} 17... Kf8 {[%clk 0:01:52.7]} 18. Bf5 {[%clk
0:01:16.6]} 18... Re8 {[%clk 0:01:43.9]} 19. Re2 {[%clk 0:00:41.9]} 19... Nb6
{[%clk 0:01:40.3]} 20. Nc6 {[%clk 0:00:30.3]} 20... Nxd5 {[%clk 0:01:24.8]} 21.
Qxd5 {[%clk 0:00:23.7]} 21... Bxc6 {[%clk 0:01:19.3]} 22. Qd2 {[%clk 0:00:18.8]}
22... Bxg2 {[%clk 0:01:18.5]} 23. Rde1 {[%clk 0:00:17.3]} 23... Bf3 {[%clk
0:01:16.2]} 24. Re3 {[%clk 0:00:15.1]} 24... Bc6 {[%clk 0:01:16.9]} 25. R3e2
{[%clk 0:00:14.5]} 25... Bf6 {[%clk 0:01:14.1]} 26. Rxe8+ {[%clk 0:00:12.7]}
26... Bxe8 {[%clk 0:01:15]} 27. Bh3 {[%clk 0:00:10.1]} 27... g6 {[%clk
0:01:14.6]} 28. f5 {[%clk 0:00:09.7]} 28... g5 {[%clk 0:01:14.5]} 29. Bg3 {[%clk
0:00:09.2]} 29... Nb7 {[%clk 0:01:12.1]} 30. Bg2 {[%clk 0:00:08.8]} 30... Kg7
{[%clk 0:01:12.5]} 31. Bxb7 {[%clk 0:00:08.9]} 31... Qxb7 {[%clk 0:01:13.4]} 32.
Bxd6 {[%clk 0:00:08.9]} 32... Bd7 {[%clk 0:01:12.4]} 33. Bb4 {[%clk 0:00:09.4]}
33... Bxf5 {[%clk 0:01:11.9]} 34. h4 {[%clk 0:00:09.7]} 34... Rd8 {[%clk
0:01:11.9]} 35. Qh2 {[%clk 0:00:08]} 35... Qb8 {[%clk 0:01:06.4]} 36. Qh1 {[%clk
0:00:06.8]} 36... Qf4 {[%clk 0:01:06.3]} 37. hxg5 {[%clk 0:00:06.1]} 37... hxg5
{[%clk 0:01:07]} 38. Rg1 {[%clk 0:00:06.4]} 38... Qd4 {[%clk 0:01:05.6]} 39. Bc3
{[%clk 0:00:04.8]} 39... Qf4 {[%clk 0:01:02.6]} 40. Bxf6+ {[%clk 0:00:04.4]}
40... Kxf6 {[%clk 0:01:03.5]} 41. Qh6+ {[%clk 0:00:04.6]} 41... Bg6 {[%clk
0:01:03.7]} 42. Qh1 {[%clk 0:00:04.4]} 42... Kg7 {[%clk 0:01:03.4]} 43. Rf1
{[%clk 0:00:05]} 43... Qe4 {[%clk 0:01:03.1]} 44. Qg1 {[%clk 0:00:05.4]} 44...
Qxc2+ {[%clk 0:01:03.1]} 45. Ka1 {[%clk 0:00:05.1]} 45... Qc4 {[%clk 0:01:03.3]}
46. Rc1 {[%clk 0:00:04.4]} 46... Qf4 {[%clk 0:01:00.2]} 47. Qc5 {[%clk
0:00:04.4]} 47... Rd5 {[%clk 0:00:59.3]} 48. Qc3+ {[%clk 0:00:03.5]} 48... Qd4
{[%clk 0:00:58.8]} 49. Qc6 {[%clk 0:00:03.1]} 49... Rf5 {[%clk 0:00:57.4]} 0-1

[Event "Late-Titled-Tuesday-Blitz-September-19-2023"]
[Site "Chess.com"]
[Date "2023.09.19"]
[Round "1"]
[White "sergeikim"]
[Black "Dubs123"]
[Result "1-0"]
[WhiteElo "2593"]
[BlackElo "2310"]
[TimeControl "180+1"]
[EndTime "14:07:08 PDT"]
[Termination "sergeikim won on time"]

1. d4 {[%clk 0:03:00.9]} 1... Nf6 {[%clk 0:02:57.9]} 2. c4 {[%clk 0:03:01]} 2...
e6 {[%clk 0:02:57.6]} 3. Nc3 {[%clk 0:03:01.1]} 3... Bb4 {[%clk 0:02:57.5]} 4.
Qc2 {[%clk 0:03:01.3]} 4... O-O {[%clk 0:02:56.2]} 5. a3 {[%clk 0:03:01.5]} 5...
Bxc3+ {[%clk 0:02:55]} 6. Qxc3 {[%clk 0:03:02.4]} 6... d6 {[%clk 0:02:54.8]} 7.
Nf3 {[%clk 0:03:02.5]} 7... b6 {[%clk 0:02:49.9]} 8. g3 {[%clk 0:03:02.5]} 8...
Bb7 {[%clk 0:02:49.8]} 9. Bg2 {[%clk 0:03:02.7]} 9... Nbd7 {[%clk 0:02:49.4]}
10. O-O {[%clk 0:03:02.7]} 10... Ne4 {[%clk 0:02:36]} 11. Qc2 {[%clk 0:03:02.9]}
11... f5 {[%clk 0:02:35.6]} 12. Ng5 {[%clk 0:03:02.7]} 12... Nxg5 {[%clk
0:02:30.3]} 13. Bxb7 {[%clk 0:03:01.9]} 13... Rb8 {[%clk 0:02:30.2]} 14. Bg2
{[%clk 0:03:02.5]} 14... c5 {[%clk 0:02:00.6]} 15. dxc5 {[%clk 0:03:01.4]} 15...
Nxc5 {[%clk 0:01:57.3]} 16. Rd1 {[%clk 0:02:53.5]} 16... Nf7 {[%clk 0:01:44.4]}
17. b4 {[%clk 0:02:49]} 17... Nd7 {[%clk 0:01:38.8]} 18. Bb2 {[%clk 0:02:46.5]}
18... Rc8 {[%clk 0:01:31]} 19. Rac1 {[%clk 0:02:42.8]} 19... Qe7 {[%clk
0:01:29.4]} 20. Qa4 {[%clk 0:02:39.4]} 20... Nde5 {[%clk 0:01:26.9]} 21. Qb3
{[%clk 0:02:35.1]} 21... Rc7 {[%clk 0:01:19.8]} 22. f4 {[%clk 0:02:28.5]} 22...
Ng4 {[%clk 0:01:12.8]} 23. h3 {[%clk 0:02:26.9]} 23... Nf6 {[%clk 0:01:11.4]}
24. Qd3 {[%clk 0:02:26.2]} 24... Rfc8 {[%clk 0:01:01.8]} 25. Kh2 {[%clk
0:02:25.1]} 25... h6 {[%clk 0:01:00.6]} 26. Bd4 {[%clk 0:02:18.9]} 26... e5
{[%clk 0:00:40.6]} 27. Bf2 {[%clk 0:02:05.5]} 27... exf4 {[%clk 0:00:37.6]} 28.
gxf4 {[%clk 0:02:05.2]} 28... Ne4 {[%clk 0:00:36.9]} 29. Be1 {[%clk 0:01:56.5]}
29... b5 {[%clk 0:00:31.7]} 30. c5 {[%clk 0:01:53.7]} 30... dxc5 {[%clk
0:00:31.3]} 31. bxc5 {[%clk 0:01:53.3]} 31... Rxc5 {[%clk 0:00:22.4]} 32. Bb4
{[%clk 0:01:49]} 32... Qc7 {[%clk 0:00:17.9]} 33. Bxc5 {[%clk 0:01:43.3]} 33...
Qxf4+ {[%clk 0:00:16.2]} 34. Kg1 {[%clk 0:01:42.5]} 34... Rxc5 {[%clk
0:00:15.3]} 35. Rxc5 {[%clk 0:01:39.8]} 35... Qf2+ {[%clk 0:00:13.5]} 36. Kh2
{[%clk 0:01:38.1]} 36... Qf4+ {[%clk 0:00:12.4]} 37. Kg1 {[%clk 0:01:37.4]}
37... Qf2+ {[%clk 0:00:12.3]} 38. Kh1 {[%clk 0:01:37.7]} 38... Nxc5 {[%clk
0:00:07.8]} 39. Qf3 {[%clk 0:01:36.1]} 39... Qxf3 {[%clk 0:00:05]} 40. Bxf3
{[%clk 0:01:36]} 40... Ne5 {[%clk 0:00:03.4]} 41. Rd5 {[%clk 0:01:34.1]} 41...
Nxf3 {[%clk 0:00:02.7]} 42. Rxc5 {[%clk 0:01:31.1]} 42... Nd4 {[%clk 0:00:02.7]}
43. e3 {[%clk 0:01:29]} 43... Ne6 {[%clk 0:00:02.8]} 44. Rxb5 {[%clk 0:01:28]}
44... f4 {[%clk 0:00:03.2]} 45. exf4 {[%clk 0:01:26.7]} 45... Nxf4 {[%clk
0:00:04.1]} 46. Kh2 {[%clk 0:01:25.6]} 46... Kh7 {[%clk 0:00:03.1]} 47. Ra5
{[%clk 0:01:25.2]} 47... Nd3 {[%clk 0:00:01.9]} 48. Rxa7 {[%clk 0:01:24.5]}
48... h5 {[%clk 0:00:02.4]} 49. a4 {[%clk 0:01:24.7]} 49... Kh6 {[%clk
0:00:02.6]} 50. a5 {[%clk 0:01:24.9]} 50... g5 {[%clk 0:00:02.6]} 51. Rc7 {[%clk
0:01:17.9]} 51... g4 {[%clk 0:00:02.2]} 52. a6 {[%clk 0:01:18]} 52... Kg5 {[%clk
0:00:02.1]} 53. a7 {[%clk 0:01:17.8]} 53... Kh4 {[%clk 0:00:01.6]} 54. a8=Q
{[%clk 0:01:16.7]} 54... g3+ {[%clk 0:00:01.3]} 55. Kg1 {[%clk 0:01:16.2]} 1-0

[Event "Late-Titled-Tuesday-Blitz-September-19-2023"]
[Site "Chess.com"]
[Date "2023.09.19"]
[Round "1"]
[White "MBA_CHESS_2021"]
[Black "tteshan"]
[Result "1-0"]
[WhiteElo "2170"]
[BlackElo "2507"]
[TimeControl "180+1"]
[EndTime "14:07:09 PDT"]
[Termination "MBA_CHESS_2021 won by resignation"]

1. e4 {[%clk 0:02:57.9]} 1... c5 {[%clk 0:02:58.7]} 2. Nf3 {[%clk 0:02:57.1]}
2... Nc6 {[%clk 0:02:59.2]} 3. d4 {[%clk 0:02:57]} 3... cxd4 {[%clk 0:03:00.1]}
4. Nxd4 {[%clk 0:02:57]} 4... g6 {[%clk 0:03:00.8]} 5. Nc3 {[%clk 0:02:53.9]}
5... Bg7 {[%clk 0:03:01.3]} 6. Be3 {[%clk 0:02:54.3]} 6... Nf6 {[%clk
0:03:01.1]} 7. Be2 {[%clk 0:02:53.3]} 7... O-O {[%clk 0:03:00.7]} 8. O-O {[%clk
0:02:53.2]} 8... d5 {[%clk 0:03:01.3]} 9. exd5 {[%clk 0:02:42.2]} 9... Nxd5
{[%clk 0:03:00.3]} 10. Nxd5 {[%clk 0:02:42.8]} 10... Qxd5 {[%clk 0:02:58.1]} 11.
Bf3 {[%clk 0:02:42.7]} 11... Qd7 {[%clk 0:02:54.2]} 12. Nxc6 {[%clk 0:02:38.1]}
12... bxc6 {[%clk 0:02:55.1]} 13. c3 {[%clk 0:02:37.8]} 13... Rb8 {[%clk
0:02:52.4]} 14. Qc2 {[%clk 0:02:32.1]} 14... Qc7 {[%clk 0:02:50.6]} 15. Be4
{[%clk 0:02:12.4]} 15... Be6 {[%clk 0:02:46]} 16. b3 {[%clk 0:02:10.6]} 16...
Bd5 {[%clk 0:02:29.1]} 17. Rac1 {[%clk 0:02:09.1]} 17... Qa5 {[%clk 0:02:17.6]}
18. Bd3 {[%clk 0:01:55.6]} 18... Rfd8 {[%clk 0:02:12.2]} 19. c4 {[%clk
0:01:53.1]} 19... Be6 {[%clk 0:02:10.9]} 20. Be4 {[%clk 0:01:53.2]} 20... Rbc8
{[%clk 0:02:00.1]} 21. h3 {[%clk 0:01:50.7]} 21... f5 {[%clk 0:01:55]} 22. Bf3
{[%clk 0:01:42.5]} 22... Bf7 {[%clk 0:01:52.4]} 23. Rfd1 {[%clk 0:01:40.7]}
23... Qc7 {[%clk 0:01:37.5]} 24. Bc5 {[%clk 0:01:35.6]} 24... e5 {[%clk
0:01:35]} 25. Rxd8+ {[%clk 0:01:31.3]} 25... Rxd8 {[%clk 0:01:33.8]} 26. Rd1
{[%clk 0:01:31.7]} 26... e4 {[%clk 0:01:31.8]} 27. Be2 {[%clk 0:01:31.3]} 27...
a5 {[%clk 0:01:29]} 28. Rxd8+ {[%clk 0:01:23.2]} 28... Qxd8 {[%clk 0:01:29.9]}
29. Qd1 {[%clk 0:01:23.1]} 29... Qxd1+ {[%clk 0:01:28.2]} 30. Bxd1 {[%clk
0:01:22.9]} 30... Bc3 {[%clk 0:01:26.2]} 31. Kf1 {[%clk 0:01:21.9]} 31... Kg7
{[%clk 0:01:25.2]} 32. Ke2 {[%clk 0:01:21.7]} 32... Kf6 {[%clk 0:01:25.8]} 33.
Bb6 {[%clk 0:01:18.8]} 33... Ke5 {[%clk 0:01:22.2]} 34. Bc2 {[%clk 0:01:18.2]}
34... g5 {[%clk 0:00:58.5]} 35. f3 {[%clk 0:01:13.5]} 35... exf3+ {[%clk
0:00:56.2]} 36. gxf3 {[%clk 0:01:13.4]} 36... h5 {[%clk 0:00:46]} 37. Bc7+
{[%clk 0:01:10.9]} 37... Ke6 {[%clk 0:00:44]} 38. Bd8 {[%clk 0:00:46]} 38... g4
{[%clk 0:00:37.9]} 39. fxg4 {[%clk 0:00:45.2]} 39... hxg4 {[%clk 0:00:36]} 40.
hxg4 {[%clk 0:00:45.5]} 40... fxg4 {[%clk 0:00:36.7]} 41. Kf2 {[%clk 0:00:45.3]}
41... Be5 {[%clk 0:00:29.2]} 42. Bxa5 {[%clk 0:00:44.1]} 42... g3+ {[%clk
0:00:26.9]} 43. Kg2 {[%clk 0:00:42.7]} 43... c5 {[%clk 0:00:14.6]} 44. Be1
{[%clk 0:00:41.8]} 44... Bd4 {[%clk 0:00:06.5]} 45. Be4 {[%clk 0:00:40.3]} 45...
Bh5 {[%clk 0:00:04.9]} 46. Bxg3 {[%clk 0:00:39.1]} 46... Bg6 {[%clk 0:00:05.4]}
47. Bd5+ {[%clk 0:00:38.5]} 1-0